Cogmind - Beta 17.1 @@@ ROGUE MODE // 2026.09.02 @ 12:03:12 Player: Anonymous like entropy Result: Destroyed by as-89859 with Assembled Blade Performance ------------- Evolutions (0) 0 Regions Visited (2) 400 Robots Destroyed (7) 35 Value Destroyed (101) 101 Prototype IDs (0) 0 Alien Tech Used (0) 0 Bonus (39) 39 TOTAL SCORE: 575 Bonus ------- Follower Combat Kills 39 Cogmind --------- Core Integrity 0/250 Matter 300/300 Energy 100/100 System Corruption 0% Temperature Cool (0) Movement Treading (160) Location -10/Mines Parts ------- > --- POWER (1) -------- (None) > --- PROPULSION (2) --- Light Treads Light Treads > --- UTILITY (2) ------ Small Storage Unit Small Storage Unit > --- WEAPON (2) ------- (None) > --- INVENTORY (8) ---- Light Treads Light Assault Rifle Peak State ------------ > --- POWER ------------ Light Ion Engine > --- PROPULSION ------- Light Treads Light Treads > --- UTILITY ---------- Small Storage Unit Small Storage Unit > --- WEAPON ----------- EM Pulse Gun EM Pulse Gun > --- INVENTORY -------- (None) [Rating: 7] Favorites ----------- Power Light Ion Engine Engine Light Ion Engine Propulsion Light Treads Treads Light Treads Utility Small Storage Unit Storage Small Storage Unit Weapon EM Pulse Gun Energy Gun EM Pulse Gun Build | -11 -10 -10 ------- Run | Yrd Mat Min Slots Evolved . | . . . Power . | . . . Propulsion . | . . . Utility . | . . . Weapon . | . . . Parts Attached 9 | 7 . 2 Power 2 | 1 . 1 Engine 2 | 1 . 1 Core . | . . . Reactor . | . . . Propulsion 3 | 2 . 1 Treads 3 | 2 . 1 Leg . | . . . Wheel . | . . . Hover . | . . . Flight . | . . . Utility 2 | 2 . . Device . | . . . Storage 2 | 2 . . Processor . | . . . Hackware . | . . . Protection . | . . . Artifact . | . . . Weapon 2 | 2 . . Energy Gun 2 | 2 . . Energy Cannon . | . . . Ballistic Gun . | . . . Ballistic Cannon . | . . . Launcher . | . . . Special Weapon . | . . . Impact Weapon . | . . . Slashing Weapon . | . . . Piercing Weapon . | . . . Special Melee Weapon . | . . . Unidentified Prototypes . | . . . Parts Lost 3 | . . 3 Power 1 | . . 1 Propulsion . | . . . Utility . | . . . Weapon 2 | . . 2 Highest Loss Streak 3 | . . 3 To Critical Strikes . | . . . Average Backups 1 | . 1 2 Power . | . . . Propulsion . | . . 1 Utility . | . . . Weapon . | . . 1 Tool/Special . | . . . Unused Backups 1 | . . 1 Power . | . . . Propulsion . | . . . Utility . | . . . Weapon 1 | . . 1 Tool/Special . | . . . Average Slot Usage (%) 99 | . 100 98 Engine 14 | . 14 14 Treads 28 | . 28 28 Storage 28 | . 28 28 Energy Gun 27 | . 28 26 Peak Build Rating 7 | 7 7 7 Average Rating 6 | 5 7 6 On Entrance 4 | . 7 7 Avg Prop Armor Cover (%) 12 | . . 12 Naked Turns . | . . . Heaviest Build 19 | 17 17 19 Greatest Support 40 | 40 40 40 Greatest Overweight (x) . | . . . Average Overweight (x) . | . . . Largest Inventory Capacity 8 | 8 8 8 Average Capacity 7 | 7 8 8 Most Carried 3 | 3 2 3 Average Carried 1 | . 1 2 Final Capacity 8 | 8 8 8 Final Carried 2 | . 2 2 Class Distribution -------------------- 100% | Mutant Dominant Class ---------------- Mutant | -10/Materials Mutant | -10/Mines Resources | -11 -10 -10 ----------- Run | Yrd Mat Min Matter Collected 290 | 270 . 20 Remotely . | . . . Salvage Created 269 | 143 . 126 Parts 19 | 11 . 8 Haulers Intercepted . | . . . Recyclers Shooed . | . . . Parts Field Recycled . | . . . Retrieved Matter . | . . . Parts Self-Destructed . | . . . Prevented . | . . . Parts Restored . | . . . Kills | -11 -10 -10 ------- Run | Yrd Mat Min Combat Hostiles Destroyed 2 | . . 2 Guns 1 | . . 1 Classes Destroyed 5 | 3 . 2 Worker 2 | 2 . . Builder 1 | . . 1 Tunneler 1 | 1 . . Recycler 1 | 1 . . Grunt 2 | . . 2 Best Kill Streak 3 | 3 . 2 Combat Bots Only 2 | . . 2 Max Kills in Single Turn 2 | 2 . 1 Gunslinging . | . . . Exploded . | . . . Melee . | . . . Uniques/NPCs Destroyed . | . . . Combat | -11 -10 -10 -------- Run | Yrd Mat Min Hostile Shots Fired 57 | . . 57 Missed 17 | . . 17 Hits 40 | . . 40 Melee 6 | . . 6 Projectile 34 | . . 34 Critical Strikes 1 | . . 1 Part Disruptions 3 | . . 3 Damage Taken 649 | . . 649 Core 261 | . . 261 Absorbed by Shields . | . . . Core Remaining (%) 100 | 100 . . Volleys Fired 14 | 4 . 10 Largest 2 | 2 . 2 Hottest 80 | 80 . 80 Shots Fired 28 | 8 . 20 Gun 28 | 8 . 20 Cannon . | . . . Launcher . | . . . Special . | . . . Kinetic . | . . . Thermal . | . . . Explosive . | . . . Electromagnetic 28 | 8 . 20 Robot Hit Streak 11 | 3 . 11 Robot Miss Streak 3 | 3 . 1 Penetration Max . | . . . Secondary Targets . | . . . Shots Hit Robots 18 | 3 . 15 Core Hits 10 | 4 . 6 Critical Kills . | . . . Critical Parts Destroyed . | . . . Critical Strikes . | . . . Melee Attacks . | . . . Impact . | . . . Slashing . | . . . Piercing . | . . . Sneak Attacks . | . . . Combat Hostiles . | . . . Follow-up Attacks . | . . . Damage Inflicted 290 | 55 . 235 Guns 265 | 55 . 210 Cannons . | . . . Explosions 25 | . . 25 Melee . | . . . Ramming . | . . . Kinetic . | . . . Thermal 25 | . . 25 Explosive . | . . . Electromagnetic 265 | 55 . 210 Impact . | . . . Slashing . | . . . Piercing . | . . . Highest Corruption . | . . . Average Corruption . | . . . Corruption Purged . | . . . Corruption Blocked . | . . . Overload Shots . | . . . Overflow Damage . | . . . Projectiles . | . . . Explosions . | . . . Melee . | . . . Knockbacks . | . . . Impact . | . . . Kinetic . | . . . Secondary . | . . . Self-Inflicted Damage 36 | . . 36 Shots 1 | . . 1 Rammed . | . . . Targets Rammed . | . . . Kicked . | . . . Crushed . | . . . Highest Temperature 180 | 36 . 180 Average Temperature 51 | 16 . 60 Received Heat Transfer 232 | . . 232 Siege Activations . | . . . Martial Activations . | . . . Shielding Activations . | . . . Robots Disrupted . | . . . Combat Hostiles . | . . . Robots Corrupted 1 | . . 1 Combat Hostiles 1 | . . 1 Parts Fried 3 | . . 3 Impact Corruptions . | . . . Robots Melted . | . . . Combat Hostiles . | . . . Parts Melted . | . . . Heat Transferred 50 | . . 50 Parts Sabotaged . | . . . Parts Stolen . | . . . Parts Stripped . | . . . Power Chain Reactions 1 | . . 1 Alert | -11 -10 -10 ------- Run | Yrd Mat Min Maximum Alert Level . | . . . Low Security (%) 100 | 100 100 100 Level 1 . | . . . Level 2 . | . . . Level 3 . | . . . Level 4 . | . . . Level 5 . | . . . High Security . | . . . Max Security . | . . . Peak Influence 50 | 10 6 50 Initial 6 | . 6 . Average 8 | 1 1 18 Influence Increases 103 | 20 . 83 Destroy 0b10 Robot/C 60 | . . 60 Destroy 0b10 Robot/NC 25 | 20 . 5 Destroy Leader 10 | . . 10 Allied During Kill 1 | . . 1 Destroy Structure 7 | . . 7 Influence Decreases 103 | 10 10 83 Entered New Map 4 | . 4 . Time Decay 86 | 10 6 70 Lost Ally 13 | . . 13 Squads Dispatched . | . . . Investigation . | . . . Extermination . | . . . Reinforcement . | . . . Assault . | . . . Garrison . | . . . Intercept . | . . . Searches Triggered . | . . . Construction Impeded . | . . . Haulers Reinforced . | . . . Active Scanning Responses . | . . . Cargo Convoy Interrupts . | . . . Stealth | -11 -10 -10 --------- Run | Yrd Mat Min Distress Signals . | . . . Communications Jammed . | . . . Distress Signals . | . . . Times Spotted 25 | . 2 23 Peak Tracking Total 21 | . 2 21 Tactical Retreats 1 | . . 1 Traps | -11 -10 -10 ------- Run | Yrd Mat Min Traps Triggered . | . . . Indirectly . | . . . Trap Hack Attempts . | . . . Triggered . | . . . Disarmed . | . . . Reprogrammed . | . . . Reused . | . . . Traps Extracted . | . . . Installed . | . . . Triggered . | . . . Machines | -11 -10 -10 ---------- Run | Yrd Mat Min Machines Disabled . | . . . Max in Single Turn . | . . . Machines Repaired . | . . . Machines Dismantled . | . . . Machines Sabotaged . | . . . Overloaded Fab Kills . | . . . Hacking | -11 -10 -10 --------- Run | Yrd Mat Min Machines Accessed 1 | . 1 . Terminals 1 | . 1 . Fabricators . | . . . Repair Stations . | . . . Recycling Units . | . . . Scanalyzers . | . . . Garrison Access . | . . . Total Hacks 1 | . 1 . Successful . | . . . Failed 1 | . 1 . Catastrophic . | . . . Database Lockouts . | . . . Manual . | . . . Terminals 1 | . 1 . Fabricators . | . . . Repair Stations . | . . . Recycling Units . | . . . Scanalyzers . | . . . Garrison Access . | . . . Terminal Hacks . | . . . Fabricator Hacks . | . . . Repair Station Hacks . | . . . Recycling Unit Hacks . | . . . Scanalyzer . | . . . Garrison Access Hacks . | . . . Unauthorized Hacks . | . . . Terminals . | . . . Fabricators . | . . . Repair Stations . | . . . Recycling Units . | . . . Scanalyzers . | . . . Garrison Access . | . . . Data Cores Recovered . | . . . Used . | . . . Hacking Detections 1 | . 1 . Full Trace Events . | . . . Feedback Events . | . . . Feedback Blocked . | . . . Robot Schematics Acquired . | . . . Robots Built . | . . . Authchips . | . . . Time . | . . . Total Robot Build Rating . | . . . Part Schematics Acquired . | . . . Parts Built . | . . . Authchips . | . . . Time . | . . . Total Part Build Rating . | . . . Part Studies Acquired . | . . . Parts Repaired . | . . . Time . | . . . Parts Recycled . | . . . Recycled Matter . | . . . Retrieved Matter . | . . . Retrieved Components . | . . . Parts Scanalyzed . | . . . Part Schematics Acquired . | . . . Parts Damaged . | . . . Bothacking | -11 -10 -10 ------------ Run | Yrd Mat Min Used RIF Installer . | . . . Robots Hacked . | . . . Non-combat . | . . . Combat . | . . . Robot Hacks Applied . | . . . Relay Couplers Released . | . . . Fabnet Peak Effective % . | . . . Robots Rewired . | . . . Allies Hacked . | . . . Hacks Repelled . | . . . Allies | -11 -10 -10 -------- Run | Yrd Mat Min Total Allies 3 | . . 3 Largest Group 3 | . . 3 Highest-Rated Group 40 | . . 40 Highest-Rated Ally 16 | . . 16 Total Orders . | . . . Ally Attacks 12 | . . 12 Total Damage 118 | . . 118 Kills 1 | . . 1 Allies Corrupted . | . . . Allies Melted . | . . . Intel | -11 -10 -10 ------- Run | Yrd Mat Min Active Infowar (turns) . | . . . Robot Analysis Total . | . . . Derelict Logs Recovered . | . . . Drone Launches . | . . . Drone Recoveries . | . . . Exploration | -11 -10 -10 ------------- Run | Yrd Mat Min Turns Passed 411 | 117 113 181 Spaces Moved 220 | 62 68 90 Core 6 | 6 . . Treads 214 | 56 68 90 Legs . | . . . Wheels . | . . . Hover . | . . . Flight . | . . . Fastest Speed 50 | 50 160 160 Average Speed 157 | 149 160 160 Slowest Speed 160 | 160 160 160 Overloaded Moves . | . . . Propulsion Burnouts . | . . . Robots Hopped . | . . . Potential Cave-ins . | . . . Cave-ins Triggered . | . . . Exploration Rate (%) 22 | 3 29 34 Regions Visited 2 Branch Regions 1 Pre-discovered Areas . | . . . Known Exits Taken . | . . . Unknown Exits Taken 2 | 1 1 . Scrap Searched . | . . . Spaces Dug . | . . . Terrain Destroyed 7 | . . 7 Melee . | . . . Projectile . | . . . AOE 7 | . . 7 Terrain Rammed . | . . . Walls Destroyed . | . . . Machines Disabled . | . . . Actions | -11 -10 -10 --------- Run | Yrd Mat Min Total 258 | 79 72 107 Wait 6 | . 3 3 Move 218 | 61 67 90 Hop . | . . . Pick Up 10 | 7 2 1 Fast Attach . | . . . Attach 7 | 7 . . Detach . | . . . Swap 2 | . . 2 Drop 1 | . . 1 Fire 14 | 4 . 10 Melee . | . . . Ram . | . . . Kick . | . . . Crush . | . . . Escape Stasis . | . . . Rewire . | . . . Trap . | . . . Miscellaneous . | . . . Route ------- -11/Scrapyard -10/Materials -10/Mines History --------- Turn | Location | Event 14 | -11/Scrapyard | Discovered new exit (range 15) 118 | -11/Scrapyard | Entered Materials 224 | -10/Materials | Discovered new exit (range 5) 231 | -10/Materials | Entered Mines 257 | -10/Mines | Met a Derelict bent on vengeance 303 | -10/Mines | Build established: Mutant 325 | -10/Mines | Assisted by bots powering up and referring to "LRC-V3" 358 | -10/Mines | Assembled infested the area 363 | -10/Mines | Assisted by a Guerilla fighting off Assembled 406 | -10/Mines | Core integrity fell below 50% 409 | -10/Mines | Core integrity fell below 20% 412 | -10/Mines | Destroyed by as-89859 with Assembled Blade Last Messages --------------- K-01 Serf destroyed. D-53 Grenadier suffers critical hit (Destroy). MM-L0L(g) destroyed. T-07 Excavator destroyed. Destroyed Shock Absorption System. The unstable cave ceiling collapses. [Achievement: Hunted] The unstable cave ceiling collapses. T-07 Excavator destroyed. The unstable cave ceiling collapses. U-05 Engineer lays Concrete. U-05 Engineer builds a Wall. Trooper 1a destroyed. U-05 Engineer lays Concrete. U-05 Engineer destroyed. EM Pulse Gun destroyed. as-94666 IFF system glitched. as-20503 destroyed. Ion Engine destroyed. as-13196 suffers critical hit (Destroy). Map ----- +----------------------------------------------------+ | ????????????????????????????????????????????????? | | ????????????????????????????????????????????????? | | ???????????####?????????????????????????????????? | | ??????????? #????????????????????????????????? | | ???????????? ????????????????????????????????? | | ???????????? ##??????????????????????????????? | | ????????????? #??????????????????????????????? | | ????????????? #??????????????????????????????? | | ?????????????? ??????????????????????????????? | | ?????????????? ??????????????????????????????? | | ??????????????? ##?????????????????????????????? | | ??????????????? ####??????????????????????????? | | ???????????????# ##?????????????????????????? | | ?????#???####### ##????????????????????????? | | ?????# ### !%= #????????????????????????? | | ?????# ! * #????###?????????????????? | | ?????# # #### ##???# ##?#####??????????? | | ?????# #???####???# ## #??????????? | | ??#### # ##???????## #?????????? | | ?## % # ######### #?????????? | | ## a ## #??????????? | | aa #???????????? | | %=[ aa a a #????????????? | | # [%=% a % a a a #???????????????? | | ## ! * aaa a ##????????????????? | | ?##% % "### @ ##?????????????????? | | ??### =| ## ### #??????????????????? | | ????# #$ %= ####?##?# #??????????????????? | | ????# # == ##???????# #??????????????????? | | ????# # %* ????????? ##??????????????????? | | ????# ####! #????????? #???????????????????? | | ????# #??# #???????? ???????????????????? | | ????# #??# #????????# ??????????????????? | | ????# #??# "#????????### ?????????????????? | | ????# #??#"%#???????????# ????????????????? | | ????# #??# "#????????????## ???????????????? | | ????# #??? #??????????????####????????????????? | | ##### #???? #??????????????????????????????????? | | # # #???? ???????????????????????????????????? | | # # #????????????????????????????????????????? | | # # #????????????????????????????????????????? | | # #????????????????????????????????????????? | | # ###??????????????????????????????????????? | | # ##?????????????????????????????????????? | | # #?????????????????????????????????????? | | # #?????????????????????????????????????? | | ##?????????????????????????????????????? | | ##??????????????????????????????????????? | | ##???????????????????????????????????????? | | ##????????????????????????????????????????? | +----------------------------------------------------+ Best States ------------- Heat Dissipation 25 Energy Generation 10 Energy Capacity 250 Matter Stores 300 Matter Capacity 300 Sight Range 16 Terrain Scan Density 10 Evasion (%) 40 Recoil Reduction 2 Item Schematics ----------------- None Robot Schematics ------------------ None Fabricated ------------ Nothing Repaired ---------- Nothing Studied --------- None Alien Tech Used ----------------- None Achievements -------------- DATA ERROR: Steam Global Achievement% Hunted I Have A Map? Organ Harvest Challenges ------------ None Game ------ Seed RingSingularityAutogun Manual? 0 Play Time 00:11:56 Cumulative 11.6 hours Start 2026.09.02 @ 11:52:24 End 2026.09.02 @ 12:03:12 Sessions 1 Manual Loads 0 Difficulty Rogue Special Mode None Game No. 19 Rogue 11 Adventurer 8 Explorer 0 Win Type - Total 0 Types 0/0/0/0/0/0/0/0/0/0 Lore% 7 Gallery% 15 Achievement% 9 Wizard Run 0 Options --------- Layout 1 ASCII 0 Keyboard 0 Movement Mouse Keybinds 0 Fullscreen 1 Font 24/Smallcaps Map View 50x35 Zoom Use 0% Tactical HUD 0 Map Filters NONE Filters NONE Steam 1 RUN: 256153ba-47f6-443f-858d-7f8ec907c00a